bitfinex/quotes_SOLUSD_20220227
["timestamp","ask_amount","ask_price","bid_price","bid_amount"]
[1645981643514,1.52290075,89.047,88.973,6.0]
[1645981643713,22.77296119,89.047,88.973,6.0]
[1645981643912,26.01024808,89.046,88.973,6.0]
[1645981644113,1.83244056,89.045,88.972,6.0]
[1645981644312,1.83244056,89.045,88.971,33.57209676]
[1645981644313,24.8455555,89.045,88.971,33.57209676]
[1645981644515,22.91296842,89.044,88.971,33.57209676]
[1645981644713,1.41922624,89.043,88.971,33.57209676]
[1645981644915,21.25006044,89.042,88.971,33.57209676]
[1645981645113,6.25435132,89.041,88.971,33.57209676]
[1645981645313,21.25006044,89.04,88.971,33.57209676]
[1645981645513,1.6190884,89.039,88.971,33.57209676]
[1645981645716,4.494,89.038,88.971,33.57209676]
[1645981645916,1.63175943,89.037,88.971,33.57209676]
[1645981646316,1.70612418,89.035,88.971,33.57209676]
[1645981646615,1.81653014,89.045,88.971,33.57209676]
[1645981646815,6.0,89.044,88.971,33.57209676]
[1645981647018,27.2264887,89.044,88.971,33.57209676]
[1645981647217,1.7771024,89.043,88.971,33.57209676]
[1645981647417,23.0035911,89.043,88.971,33.57209676]
[1645981647617,1.61322734,89.042,88.971,33.57209676]
[1645981647816,22.83971604,89.042,88.971,33.57209676]
[1645981648016,1.68436951,89.041,88.971,33.57209676]
[1645981648216,22.91085821,89.041,88.971,33.57209676]
[1645981648419,1.59276004,89.04,88.971,33.57209676]
[1645981648618,22.81924874,89.04,88.971,33.57209676]
[1645981648818,1.8072701,89.039,88.971,33.57209676]
[1645981649019,23.0337588,89.039,88.971,33.57209676]
[1645981649219,1.40976965,89.038,88.971,33.57209676]
[1645981649622,1.38238052,89.045,88.971,33.57209676]
[1645981650021,1.36776641,89.043,88.971,33.57209676]
[1645981650421,21.23217,89.042,88.971,33.57209676]
[1645981650622,1.7537957,89.041,88.971,33.57209676]
[1645981651222,1.37601424,89.039,88.971,33.57209676]
[1645981651623,21.23217,89.038,88.971,33.57209676]
[1645981651823,1.70126632,89.037,88.971,33.57209676]
[1645981652026,1.54259018,89.044,88.971,33.57209676]
[1645981652426,1.3812559,89.042,88.971,33.57209676]
[1645981652827,27.23217,89.041,88.971,33.57209676]
[1645981653027,1.44367214,89.04,88.971,33.57209676]
[1645981653227,1.55931424,89.039,88.971,33.57209676]
[1645981653630,6.0,89.041,88.971,33.57209676]
[1645981654030,1.45924906,89.039,88.971,33.57209676]
[1645981654431,6.0,89.041,88.971,33.57209676]
[1645981654832,21.24333995,89.04,88.972,23.2922]
[1645981655031,1.42044762,89.039,88.972,23.2922]
[1645981655834,1.45312529,89.045,88.972,23.2922]
[1645981656432,6.0,89.044,88.972,23.2922]
[1645981665243,6.0,89.044,88.973,2.74678921]
[1645981665443,1.68735238,89.066,88.973,2.74678921]
[1645981667970,1.45065178,89.045,88.973,2.74678921]
[1645981668170,1.45065178,89.045,88.972,23.2922]
[1645981668569,1.43946968,89.043,88.972,23.2922]
[1645981668969,6.0,89.042,88.972,23.2922]
[1645981669168,1.49120488,89.065,88.972,23.2922]
[1645981669370,7.52778412,89.045,88.972,23.2922]
[1645981669771,21.11959114,89.044,88.972,23.2922]
[1645981670171,1.4061389,89.043,88.972,23.2922]
[1645981671373,21.12544061,89.042,88.972,23.2922]
[1645981671774,1.69779751,89.041,88.972,23.2922]
[1645981672176,21.12544061,89.04,88.972,23.2922]
[1645981672376,1.42293226,89.039,88.972,23.2922]
[1645981672577,6.0,89.038,88.972,23.2922]
[1645981673278,1.74145084,89.045,88.972,23.2922]
[1645981673477,1.40253448,89.036,88.972,23.2922]
[1645981673878,24.025,89.035,88.972,23.2922]
[1645981675580,21.14794102,89.034,88.972,23.2922]
[1645981678783,6.0,89.033,88.972,23.2922]
[1645981679185,21.14794102,89.032,88.972,23.2922]
[1645981679690,21.14794102,89.032,88.98,16.8568]
[1645981680086,21.14794102,89.032,88.981,5.21815521]
[1645981680285,21.14794102,89.032,88.982,23.2817]
[1645981680486,21.14794102,89.034,88.982,26.02848921]
[1645981680688,21.14794102,89.034,88.983,2.74678921]
[1645981681091,21.14794102,89.034,88.982,23.2817]
[1645981683691,6.0,89.033,88.982,23.2817]
[1645981684090,21.14794102,89.032,88.982,23.2817]
[1645981685290,6.0,89.033,88.982,23.2817]
[1645981686092,24.025,89.035,88.982,23.2817]
[1645981686291,6.0,89.034,88.982,23.2817]
[1645981686693,21.19333254,89.033,88.982,23.2817]
[1645981687091,24.025,89.035,88.982,23.2817]
[1645981687291,6.0,89.034,88.983,2.74678921]
[1645981687491,24.025,89.035,88.983,2.74678921]
[1645981687693,1.57942088,89.077,88.983,5.78131195]
[1645981687893,29.674,89.066,88.991,2.89434421]
[1645981688193,21.20968706,89.065,88.991,2.89434421]
[1645981688392,21.20968706,89.065,88.992,26.77408921]
[1645981688792,21.20968706,89.065,88.993,2.74678921]
[1645981694424,6.0,89.064,88.993,2.74678921]
[1645981694824,21.20968706,89.063,88.993,2.74678921]
[1645981695225,21.20968706,89.062,88.993,2.74678921]
[1645981695625,21.20968706,89.061,88.993,2.74678921]
[1645981696024,21.20968706,89.06,88.993,2.74678921]
[1645981696427,21.20968706,89.059,88.993,2.74678921]
[1645981696827,21.20968706,89.058,88.993,2.74678921]
[1645981697226,21.20968706,89.057,88.993,2.74678921]
[1645981697426,24.3777,89.056,88.993,2.74678921]
[1645981698229,6.0,89.055,89.0,16.8523]
[1645981698430,6.0,89.054,89.001,28.49484142]
[1645981698730,22.894,89.067,89.001,31.24163063]
[1645981698929,6.0,89.066,89.002,26.28678921]
[1645981699328,6.0,89.066,89.003,2.74678921]
[1645981702534,29.2011,89.066,89.003,2.74678921]
[1645981707439,6.0,89.066,89.011,2.44447221]
[1645981707642,1.66666663,89.099,89.02,16.22]
[1645981707840,47.805,89.122,89.021,22.5141]
[1645981708040,1.80214368,89.121,89.021,22.5141]
[1645981708240,22.9992054,89.121,89.021,25.26088921]
[1645981708442,1.39554986,89.12,89.022,2.74678921]
[1645981708741,1.77304957,89.119,89.022,2.74678921]
[1645981709044,21.19706172,89.118,89.022,2.74678921]
[1645981709240,1.81102131,89.117,89.022,2.74678921]
[1645981709841,21.19706172,89.116,89.022,2.74678921]
[1645981710041,1.79109071,89.115,89.022,2.74678921]
[1645981710241,22.98815243,89.115,89.022,2.74678921]
[1645981710440,1.40742875,89.114,89.022,2.74678921]
[1645981710642,22.60449047,89.114,89.022,2.74678921]
[1645981710842,10.49,89.113,89.022,2.74678921]
[1645981711040,26.37318435,89.112,89.022,2.74678921]
[1645981711241,1.37433117,89.111,89.022,2.74678921]
[1645981711441,22.57139289,89.111,89.022,2.74678921]
[1645981711643,1.46084182,89.11,89.022,2.74678921]
[1645981711841,22.65790354,89.11,89.022,2.74678921]
[1645981712142,1.8040196,89.109,89.022,2.74678921]
[1645981712340,21.19706172,89.109,89.022,2.74678921]
[1645981712540,1.54599192,89.108,89.022,2.74678921]
[1645981712741,1.49602394,89.107,89.022,2.74678921]
[1645981713142,24.59,89.112,89.022,2.74678921]
[1645981713143,1.4939394,89.105,89.022,2.74678921]
[1645981713744,1.53209061,89.103,89.022,2.74678921]
[1645981714144,1.67447665,89.101,89.022,2.74678921]
[1645981714342,1.67447665,89.101,89.021,22.5141]
[1645981714543,1.84541697,89.099,89.021,22.5141]
[1645981714743,23.0072,89.098,89.021,22.5141]
[1645981714943,7.6564233,89.097,89.021,22.5141]
[1645981715446,6.0,89.097,89.021,25.29434931]
[1645981717545,6.0,89.097,89.021,2.78024931]
[1645981717746,2.74678921,89.096,89.001,28.49484142]
[1645981717946,4.491,89.095,89.001,28.49484142]
[1645981718147,25.61533012,89.095,89.001,28.49484142]
[1645981718346,11.29495758,89.094,89.001,28.49484142]
[1645981718546,5.96095989,89.093,89.001,28.49484142]
[1645981718748,8.7077491,89.093,89.001,28.49484142]
[1645981718947,29.87111933,89.092,89.001,28.49484142]
[1645981719247,6.20081856,89.091,89.001,28.49484142]
[1645981719445,18.57378548,89.09,89.001,28.49484142]
[1645981719647,6.29573031,89.089,89.001,28.49484142]
[1645981719846,23.005,89.088,89.001,28.49484142]
[1645981720045,1.7867705,89.087,89.001,28.49484142]
[1645981720248,4.492,89.086,89.001,28.49484142]
[1645981720448,6.1911767,89.086,89.001,28.49484142]
[1645981720648,1.74113503,89.084,89.001,28.49484142]
[1645981720849,4.492,89.083,89.001,28.49484142]
[1645981721047,25.61633012,89.083,89.001,28.49484142]
[1645981721247,1.55815291,89.082,89.001,28.49484142]
[1645981721448,27.17448303,89.082,89.001,28.49484142]
[1645981721650,1.86480865,89.081,89.001,28.49484142]
[1645981721950,21.12433012,89.081,89.001,28.49484142]
[1645981722148,1.75386086,89.08,89.001,28.49484142]
[1645981722649,21.12433012,89.079,89.001,28.49484142]
[1645981722848,1.60658429,89.078,89.001,28.49484142]
[1645981723050,22.73091441,89.078,89.001,28.49484142]
[1645981723249,1.72598791,89.077,89.001,28.49484142]
[1645981723449,23.8936,89.076,89.001,28.49484142]
[1645981723650,1.81331019,89.075,89.001,28.49484142]
[1645981723853,22.93764031,89.075,89.001,28.49484142]
[1645981724050,1.82740349,89.074,89.001,28.49484142]
[1645981724250,22.95173361,89.074,89.001,28.49484142]
[1645981724452,1.82380616,89.073,89.001,28.49484142]
[1645981724651,22.94813628,89.073,89.001,28.49484142]
[1645981724850,21.12433012,89.073,89.001,28.49484142]
[1645981725050,21.12433012,89.072,89.001,28.49484142]
[1645981725250,1.47656828,89.071,89.001,28.49484142]
[1645981725852,6.0,89.07,89.001,28.49484142]
[1645981733457,6.0,89.07,88.993,24.3408]
[1645981733659,6.0,89.07,88.986,25.14511647]
[1645981733660,1.36810084,89.068,88.973,40.00714359]
[1645981733958,20.96064298,89.067,88.97,24.5341]
[1645981734159,5.92046936,89.066,88.97,24.5341]
[1645981734360,28.19943219,89.066,88.97,24.5341]
[1645981734579,1.56749273,89.064,88.993,32.03508491]
[1645981734784,6.0,89.063,88.993,32.03508491]
[1645981734979,16.862,89.06,88.973,24.5027]
[1645981735181,1.51746428,89.059,88.97,17.2449]
[1645981735380,4.493,89.058,88.94,16.22]
[1645981735580,1.70322723,89.057,88.926,48.5727]
[1645981735782,4.45001644,89.057,88.926,48.5727]
[1645981735979,4.45001644,89.057,88.927,34.84208577]
[1645981735980,41.52840486,89.056,88.927,34.84208577]
[1645981736182,6.2145816,89.055,88.927,34.84208577]
[1645981736384,16.8666,89.04,88.927,34.84208577]
[1645981736582,16.22,89.03,88.927,34.84208577]
[1645981736782,1.64092666,89.028,88.927,34.84208577]
[1645981737081,4.495,89.027,88.927,34.84208577]
[1645981737284,1.60548805,89.026,88.927,34.84208577]
[1645981737483,16.8734,89.0,88.927,34.84208577]
[1645981737683,25.1720405,88.999,88.927,34.84208577]
[1645981737882,23.3535,88.999,88.927,34.84208577]
[1645981738083,1.65533718,88.998,88.927,34.84208577]
[1645981738284,1.65533718,88.998,88.9,16.9149]
[1645981738483,1.57998698,88.996,88.9,16.9149]
[1645981738684,16.8752,88.99,88.9,16.9149]
[1645981738884,1.35552521,88.989,88.9,16.9149]
[1645981739085,4.497,88.988,88.9,16.9149]
[1645981739285,4.497,88.988,88.901,27.52403298]
[1645981739484,7.24378921,88.988,88.901,27.52403298]
[1645981739685,26.26838921,88.987,88.901,27.52403298]
[1645981739886,5.90248377,88.986,88.901,27.52403298]
[1645981740084,8.64927298,88.986,88.901,27.52403298]
[1645981740286,5.90248377,88.986,88.901,27.52403298]
[1645981740487,2.74678921,88.985,88.901,27.52403298]
[1645981740685,4.497,88.984,88.901,27.52403298]
[1645981740885,6.0,88.983,88.901,27.52403298]
[1645981741184,4.497,88.982,88.901,27.52403298]
[1645981741388,1.4485466,88.982,88.901,27.52403298]
[1645981743289,16.8769,88.98,88.901,27.52403298]
[1645981743491,5.86951282,88.979,88.901,27.52403298]
[1645981743690,8.61630203,88.979,88.901,27.52403298]
[1645981743890,2.74678921,88.978,88.901,27.52403298]
[1645981744190,4.497,88.977,88.901,27.52403298]
[1645981744590,10.61501043,88.976,88.901,27.52403298]
[1645981744791,16.8791,88.97,88.874,4.497]
[1645981745093,6.23966088,88.969,88.874,4.497]
[1645981745294,8.98645009,88.969,88.874,4.497]
[1645981745492,15.25645009,88.969,88.874,4.497]
[1645981745692,1.7497497,88.968,88.874,4.497]
[1645981745892,4.498,88.967,88.882,34.84305961]
[1645981750393,4.498,88.967,88.883,24.3811]
[1645981750994,6.0,88.966,88.883,24.3811]
[1645981751196,7.85588366,88.966,88.883,24.3811]
[1645981753798,6.0,88.966,88.883,24.3811]
[1645981753998,22.6697,88.975,88.89,16.22]
[1645981754197,22.6697,88.975,88.891,2.65651925]
[1645981754398,22.6697,88.975,88.891,5.40330846]
[1645981754601,22.6697,88.975,88.892,2.60053385]
[1645981754805,22.6697,88.975,88.892,27.98517286]
[1645981754999,24.0206,89.0,88.901,3.10709592]
[1645981755199,24.8255,88.996,88.91,16.22]
[1645981755404,24.8255,88.996,88.92,16.22]
[1645981755600,24.8255,88.996,88.921,22.883]
[1645981755999,24.8255,88.996,88.921,50.07789849]
[1645981756200,24.8255,88.996,88.922,27.19489849]
[1645981757601,6.0,88.995,88.922,27.19489849]
[1645981757801,6.0,88.995,88.921,22.883]
[1645981758802,6.0,88.995,88.93,16.866]
[1645981761604,6.0,88.995,88.93,33.5819]
[1645981761805,6.0,88.995,88.931,2.28551652]
[1645981762407,4.496,89.024,88.931,2.28551652]
[1645981762609,23.2198,89.023,88.941,31.6925439]
[1645981762806,23.2198,89.023,88.942,26.50283074]
[1645981763008,23.2198,89.023,88.943,2.76878276]
[1645981764907,23.2198,89.023,88.944,6.0]
[1645981766009,6.0,89.022,88.944,6.0]
[1645981769852,7.58116036,89.022,88.942,24.1691]
[1645981770054,6.01924654,89.021,88.942,24.1691]
[1645981770857,2.74678921,89.02,88.942,24.1691]
[1645981771054,4.495,89.019,88.942,24.1691]
[1645981771453,2.74678921,89.018,88.942,24.1691]
[1645981771854,4.495,89.017,88.942,24.1691]
[1645981772253,2.74678921,89.016,88.942,24.1691]
[1645981772854,4.495,89.015,88.942,24.1691]
[1645981773253,2.74678921,89.014,88.942,24.1691]
[1645981773854,6.0,89.013,88.942,24.1691]
[1645981774055,6.06628394,89.012,88.942,24.1691]
[1645981774257,24.2136,89.011,88.942,24.1691]
[1645981774456,6.34070461,89.01,88.942,24.1691]
[1645981774856,1.84570461,89.01,88.942,24.1691]
[1645981777355,6.0,89.009,88.942,24.1691]
[1645981782760,24.2136,89.011,88.942,24.1691]
[1645981782961,6.0,89.01,88.943,36.32881427]
[1645981783163,6.0,89.01,88.943,40.82381427]
[1645981783563,6.0,89.01,88.943,43.73816401]
[1645981783765,6.0,89.01,88.943,39.24316401]
[1645981784965,6.0,89.01,88.943,36.32881427]
[1645981786368,6.0,89.01,88.944,6.0]
[1645981786569,7.40895851,89.01,88.944,6.0]
[1645981787565,7.40895851,89.01,88.943,36.32881427]
[1645981788165,6.24417069,89.009,88.943,36.32881427]
[1645981788566,1.74917069,89.009,88.943,36.32881427]
[1645981788766,2.74678921,89.008,88.943,36.32881427]
[1645981788968,4.495,89.007,88.943,36.32881427]
[1645981789366,23.59392189,89.006,88.943,36.32881427]
[1645981789569,6.14316456,89.005,88.943,36.32881427]
[1645981789768,29.73708645,89.005,88.943,36.32881427]
[1645981789969,16.8769,88.98,88.943,36.32881427]
[1645981790168,1.46992052,88.979,88.943,36.32881427]
[1645981790368,4.21670973,88.979,88.943,36.32881427]
[1645981790669,2.74678921,88.978,88.943,36.32881427]
[1645981790869,6.0,88.977,88.943,36.32881427]
[1645981791269,2.74678921,88.976,88.943,36.32881427]
[1645981793071,4.496,88.978,88.943,36.32881427]
[1645981795493,7.51498891,88.977,88.943,36.32881427]
[1645981795692,6.26933978,88.976,88.943,36.32881427]
[1645981796094,1.77333978,88.976,88.943,36.32881427]
[1645981801198,4.496,88.979,88.943,36.32881427]
[1645981801398,183.67714,88.988,88.943,36.32881427]
[1645981802598,6.0,88.987,88.943,36.32881427]
[1645981804004,6.0,88.986,88.943,36.32881427]
[1645981804202,27.19738921,89.019,88.944,23.9186]
[1645981804399,26.88509128,89.018,88.944,23.9186]
[1645981805002,20.88509128,89.017,88.944,23.9186]
[1645981807003,24.4506,89.019,88.944,23.9186]
[1645981807004,6.0,89.016,88.944,23.9186]
[1645981807206,20.88509128,89.018,88.944,23.9186]
[1645981807406,24.4506,89.019,88.944,23.9186]
[1645981807407,6.0,89.017,88.944,23.9186]
[1645981807605,4.495,89.028,88.945,2.6047216]
[1645981807805,6.0,89.027,88.945,2.6047216]
[1645981808005,28.17018533,89.039,88.945,2.6047216]
[1645981808205,6.0,89.03,88.945,2.6047216]
[1645981808907,6.0,89.03,88.95,16.8629]
[1645981809106,6.0,89.03,88.96,16.22]
[1645981809310,24.4286,89.043,88.961,2.36257278]
[1645981809506,6.0,89.042,88.963,3.00592725]
[1645981809708,20.91753879,89.041,88.963,3.00592725]
[1645981810110,20.91753879,89.042,88.963,3.00592725]
[1645981810514,20.91753879,89.042,88.971,2.68106806]
[1645981813213,20.91753879,89.042,88.973,2.62016852]
[1645981813413,6.0,89.041,88.973,2.62016852]
[1645981813816,20.91753879,89.04,88.973,2.62016852]
[1645981815017,20.91753879,89.042,88.973,2.62016852]
[1645981815416,24.4286,89.043,88.973,2.62016852]
[1645981815916,4.494,89.061,88.975,2.57216394]
[1645981816116,4.494,89.061,88.981,2.60747476]
[1645981816416,24.2348,89.06,88.981,2.60747476]
[1645981817217,6.0,89.043,88.981,2.60747476]
[1645981817918,6.0,89.042,88.99,16.8553]
[1645981818117,24.2348,89.06,88.991,2.58204288]
[1645981818322,24.2348,89.06,88.991,24.8223]
[1645981818323,6.0,89.059,88.991,24.8223]
[1645981818517,26.96064256,89.059,88.992,2.91521135]
[1645981818918,6.0,89.059,88.992,2.91521135]
[1645981819619,28.2907,89.085,88.992,2.91521135]
[1645981819819,6.0,89.084,88.992,2.91521135]
[1645981820020,26.95914674,89.084,88.992,2.91521135]
[1645981820419,20.95914674,89.083,88.992,2.91521135]
[1645981821519,20.95914674,89.084,88.992,2.91521135]
[1645981821719,20.95914674,89.082,88.992,2.91521135]
[1645981822221,20.95914674,89.081,88.992,2.91521135]
[1645981822619,23.7977,89.085,88.992,2.91521135]
[1645981822620,20.95914674,89.08,88.992,2.91521135]
[1645981822820,6.0,89.079,88.992,2.91521135]
[1645981823021,26.95914674,89.079,88.992,2.91521135]
[1645981823421,20.95914674,89.078,88.992,2.91521135]
[1645981823621,4.492,89.077,88.992,2.91521135]
[1645981823822,25.45114674,89.077,88.992,2.91521135]
[1645981824021,20.95914674,89.077,88.992,2.91521135]
[1645981824222,20.95914674,89.076,88.992,2.91521135]
[1645981824621,20.95914674,89.075,88.992,2.91521135]
[1645981825022,20.95914674,89.074,88.992,2.91521135]
[1645981825423,20.95914674,89.073,88.992,2.91521135]
[1645981825830,20.95914674,89.072,88.992,2.91521135]
[1645981826225,20.95914674,89.071,88.992,2.91521135]
[1645981826727,4.492,89.084,88.992,2.91521135]
[1645981827025,20.92614715,89.083,88.992,2.91521135]
[1645981827224,4.492,89.082,88.992,2.91521135]
[1645981827830,20.92614715,89.081,89.0,16.8535]
[1645981828029,4.492,89.08,89.001,30.08215354]
[1645981828246,4.492,89.08,89.002,24.3966]
[1645981828648,20.92614715,89.079,89.002,24.3966]
[1645981830654,20.92614715,89.08,89.002,24.3966]
[1645981831053,20.92614715,89.084,89.002,24.3966]
[1645981831452,20.92614715,89.083,89.002,24.3966]
[1645981831653,6.0,89.082,89.002,24.3966]
[1645981832052,20.92614715,89.081,89.002,24.3966]
[1645981832459,20.92614715,89.08,89.002,24.3966]
[1645981832853,20.92614715,89.079,89.002,24.3966]
[1645981833454,20.92614715,89.078,89.002,24.3966]
[1645981833854,6.0,89.082,89.002,24.3966]
[1645981834155,20.90166743,89.081,89.002,24.3966]
[1645981835156,21.3505,89.08,89.002,24.3966]
[1645981835355,1.51544662,89.079,89.002,24.3966]
[1645981835554,4.492,89.078,88.967,2.45341546]
[1645981835756,25.39366743,89.078,88.976,23.759]
[1645981835954,34.07580088,89.077,88.976,23.759]
[1645981836157,6.3598176,89.076,88.977,30.41648814]
[1645981836357,47.26895686,89.076,88.977,30.41648814]
[1645981836555,16.8602,89.07,88.977,30.41648814]
[1645981836755,5.87442956,89.069,88.977,30.41648814]
[1645981836956,24.3215,89.068,88.977,30.41648814]
[1645981837158,5.88796768,89.067,88.977,30.41648814]
[1645981837460,20.90166743,89.066,88.977,30.41648814]
[1645981837657,1.60023674,89.065,88.977,30.41648814]
[1645981837857,23.64845664,89.065,88.977,30.41648814]
[1645981838055,1.67593981,89.064,88.977,30.41648814]
[1645981838255,22.57760724,89.064,88.977,30.41648814]
[1645981838455,1.594631,89.063,88.977,30.41648814]
[1645981838656,22.49629843,89.063,88.977,30.41648814]
[1645981838857,7.35305969,89.062,88.977,30.41648814]
[1645981839056,28.25472712,89.062,88.977,30.41648814]
[1645981839255,1.67611418,89.061,88.977,30.41648814]
[1645981839458,22.57778161,89.061,88.977,30.41648814]
[1645981839658,1.80279155,89.06,88.977,30.41648814]
[1645981839858,22.70445898,89.06,88.977,30.41648814]
[1645981840158,1.35174193,89.059,88.977,30.41648814]
[1645981840356,6.0,89.062,88.977,30.41648814]
[1645981840756,25.35860267,89.061,88.977,30.41648814]
[1645981840956,1.48983435,89.06,88.977,30.41648814]
[1645981841159,20.86560267,89.06,88.977,30.41648814]
[1645981841359,1.82718753,89.059,88.977,30.41648814]
[1645981842561,4.493,89.064,88.977,30.41648814]
[1645981843059,20.86343105,89.063,88.977,30.41648814]
[1645981843259,4.493,89.062,88.977,30.41648814]
[1645981843459,20.86343105,89.061,88.977,30.41648814]
[1645981843859,1.50149264,89.06,88.977,30.41648814]
[1645981844061,20.86343105,89.067,88.977,30.41648814]
[1645981844259,1.46590928,89.066,88.977,30.41648814]
[1645981844759,20.87021586,89.065,88.977,30.41648814]
[1645981844959,1.69624839,89.064,88.977,30.41648814]
[1645981845159,4.493,89.063,88.977,30.41648814]
[1645981845562,20.87021586,89.062,88.977,30.41648814]
[1645981845759,6.34737778,89.061,88.977,30.41648814]
[1645981846160,6.0,89.06,88.977,30.41648814]
[1645981846361,7.46989904,89.06,88.977,30.41648814]
[1645981846660,6.0,89.06,88.977,30.41648814]
[1645981846860,4.493,89.065,88.977,30.41648814]
[1645981847261,20.87552987,89.064,88.977,30.41648814]
[1645981847460,5.93732296,89.063,88.977,30.41648814]
[1645981847962,20.87552987,89.062,88.977,30.41648814]
[1645981848359,1.84302056,89.061,88.977,30.41648814]
[1645981848564,20.87552987,89.067,88.977,30.41648814]
[1645981848761,1.43295531,89.066,88.977,30.41648814]
[1645981849260,20.87552987,89.065,88.977,30.41648814]
[1645981849461,1.72077161,89.064,88.977,30.41648814]
[1645981849661,6.0,89.063,88.977,30.41648814]
[1645981850062,20.87552987,89.062,88.977,30.41648814]
[1645981850464,1.50182982,89.061,88.977,30.41648814]
[1645981850864,20.87552987,89.06,88.977,30.41648814]
[1645981851163,6.01758769,89.059,88.977,30.41648814]
[1645981851365,8.7643769,89.059,88.977,30.41648814]
[1645981851562,2.74678921,89.058,88.977,30.41648814]
[1645981851762,4.493,89.057,88.977,30.41648814]
[1645981851962,24.386,89.056,88.977,30.41648814]
[1645981852165,5.9451856,89.055,88.977,30.41648814]
[1645981852565,20.87552987,89.054,88.977,30.41648814]
[1645981852763,6.17775556,89.053,88.977,30.41648814]
[1645981853363,20.87552987,89.052,88.977,30.41648814]
[1645981853565,1.82753824,89.051,88.977,30.41648814]
[1645981854166,20.87552987,89.05,88.977,30.41648814]
[1645981854367,1.37749653,89.049,88.977,30.41648814]
[1645981854770,6.0,89.048,88.977,30.41648814]
[1645981854968,26.87552987,89.048,88.977,30.41648814]
[1645981855169,1.65216794,89.047,88.977,30.41648814]
[1645981855368,22.52769781,89.047,88.977,30.41648814]
[1645981855570,1.71574772,89.045,88.977,30.41648814]
[1645981856470,20.87552987,89.044,88.977,30.41648814]
[1645981856770,1.59173903,89.043,88.977,30.41648814]
[1645981857170,20.87552987,89.042,88.977,30.41648814]
[1645981857371,1.68716699,89.041,88.977,30.41648814]
[1645981858075,20.87552987,89.04,88.977,30.41648814]
[1645981858274,1.68975483,89.039,88.977,30.41648814]
[1645981858872,20.87552987,89.038,88.977,30.41648814]
[1645981859172,1.71317603,89.037,88.977,30.41648814]
[1645981859574,20.87552987,89.036,88.977,30.41648814]
[1645981859773,1.48479848,89.034,88.977,30.41648814]
[1645981860376,20.87552987,89.033,88.977,30.41648814]
[1645981860677,1.61789351,89.032,88.977,30.41648814]
[1645981860878,6.0,89.031,88.977,30.41648814]
[1645981861279,20.87552987,89.03,88.977,30.41648814]
[1645981861575,1.70072797,89.029,88.977,30.41648814]
[1645981862180,6.0,89.031,88.977,30.41648814]
[1645981862477,20.94925522,89.03,88.977,30.41648814]
[1645981862879,24.7496,89.035,88.977,30.41648814]
[1645981863276,20.95263808,89.034,88.977,30.41648814]
[1645981864377,6.0,89.033,88.977,30.41648814]
[1645981865178,24.7496,89.035,88.977,30.41648814]
[1645981865379,6.0,89.034,88.977,30.41648814]
[1645981865781,20.96245856,89.033,88.977,30.41648814]
[1645981866181,6.0,89.034,88.977,30.41648814]
[1645981868183,20.98716602,89.033,88.977,30.41648814]
[1645981868985,20.98716602,89.034,88.977,30.41648814]
[1645981869584,20.98716602,89.034,88.978,2.64748881]
[1645981870984,6.0,89.033,88.978,2.64748881]
[1645981871188,24.7496,89.035,88.978,2.64748881]
[1645981871387,6.0,89.034,88.978,2.64748881]
[1645981871988,240.86521397,89.043,88.978,2.64748881]
[1645981873387,240.86521397,89.043,88.98,33.0775]
[1645981873590,240.86521397,89.043,88.981,2.34665548]
[1645981873790,240.86521397,89.043,88.982,6.0]
[1645981874290,240.86521397,89.043,88.982,34.1346231]
[1645981874488,240.86521397,89.043,88.983,2.81921888]
[1645981874689,240.86521397,89.043,88.984,9.02433444]
[1645981874989,240.86521397,89.043,88.984,31.02753849]
[1645981875190,240.86521397,89.043,88.985,2.573208]
[1645981875390,6.0,89.042,88.986,29.6969]
[1645981875591,6.0,89.042,89.0,33.0739]
[1645981875790,6.0,89.042,89.001,2.66005012]
[1645981875991,6.0,89.041,89.001,2.66005012]
[1645981876191,4.493,89.085,89.001,2.66005012]
[1645981876393,6.0,89.084,89.002,22.8312]
[1645981876593,22.8225,89.086,89.003,2.52477721]
[1645981876791,21.0261903,89.083,89.004,33.30283102]
[1645981877011,21.0261903,89.083,89.005,2.36420214]
[1645981877191,21.0261903,89.084,89.005,2.36420214]
[1645981879190,22.8225,89.086,89.005,2.36420214]
[1645981879191,6.0,89.083,89.005,2.36420214]
[1645981879401,6.0,89.082,89.005,2.36420214]
[1645981879603,21.0261903,89.082,89.005,2.36420214]
[1645981879791,6.0,89.081,89.005,2.36420214]